[Event "Titled Tuesday Blitz December 13 Late 2022"]
[White "Radovanovic, Dusan"]
[Black "Fedoseev, Vladimir"]
[WhiteFideId "926868"]
[BlackFideId "24130737"]
[WhiteElo "2337"]
[BlackElo "2733"]
[Result "0-1"]
[Round "01"]
[TimeControl "180+1"]
[Date "2022.12.13"]
[WhiteClock "0:00:27"]
[BlackClock "0:01:42"]

1. e4 {[%clk 0:02:56]}  c6 {[%clk 0:02:51]} 2. d4 {[%clk 0:02:55]}  d5 {[%clk 0:02:52]} 3. e5 {[%clk 0:02:55]}  c5 {[%clk 0:02:52]} 4. dxc5 {[%clk 0:02:55]}  e6 {[%clk 0:02:52]} 5. Qg4 {[%clk 0:02:54]}  h5 {[%clk 0:02:51]} 6. Qf4 {[%clk 0:02:52]}  Bxc5 {[%clk 0:02:50]} 7. Bd3 {[%clk 0:02:51]}  Nc6 {[%clk 0:02:50]} 8. Nf3 {[%clk 0:02:47]}  f6 {[%clk 0:02:51]} 9. O-O {[%clk 0:02:31]}  g5 {[%clk 0:02:50]} 10. Bg6+ {[%clk 0:01:55]}  Kd7 {[%clk 0:02:50]} 11. Qa4 {[%clk 0:01:53]}  g4 {[%clk 0:02:49]} 12. Nfd2 {[%clk 0:01:47]}  fxe5 {[%clk 0:02:49]} 13. c4 {[%clk 0:01:46]}  Ne7 {[%clk 0:02:46]} 14. Bd3 {[%clk 0:01:43]}  e4 {[%clk 0:02:43]} 15. Be2 {[%clk 0:01:42]}  Kc7 {[%clk 0:02:38]} 16. Nc3 {[%clk 0:01:38]}  a6 {[%clk 0:02:36]} 17. a3 {[%clk 0:01:38]}  Bd7 {[%clk 0:02:33]} 18. Qc2 {[%clk 0:01:35]}  Nd4 {[%clk 0:02:32]} 19. Qd1 {[%clk 0:01:34]}  Bc6 {[%clk 0:02:22]} 20. b4 {[%clk 0:01:33]}  Bd6 {[%clk 0:02:18]} 21. Bb2 {[%clk 0:01:30]}  Be5 {[%clk 0:02:18]} 22. b5 {[%clk 0:01:26]}  axb5 {[%clk 0:02:17]} 23. cxb5 {[%clk 0:01:26]}  Bd7 {[%clk 0:02:17]} 24. Rc1 {[%clk 0:01:11]}  Kb8 {[%clk 0:02:17]} 25. Nb3 {[%clk 0:01:03]}  Nef5 {[%clk 0:02:11]} 26. Nc5 {[%clk 0:00:57]}  Bc8 {[%clk 0:02:06]} 27. a4 {[%clk 0:00:57]}  Qd6 {[%clk 0:02:05]} 28. Nb3 {[%clk 0:00:34]}  Bxh2+ {[%clk 0:02:03]} 29. Kh1 {[%clk 0:00:35]}  Be5 {[%clk 0:02:03]} 30. a5 {[%clk 0:00:32]}  Nxb3 {[%clk 0:01:54]} 31. Qxb3 {[%clk 0:00:32]}  Rxa5 {[%clk 0:01:49]} 32. Rfd1 {[%clk 0:00:32]}  Nd4 {[%clk 0:01:42]} 33. Nxe4 {[%clk 0:00:29]}  Nxb3 {[%clk 0:01:41]} 34. Nxd6 {[%clk 0:00:29]}  Bxb2 {[%clk 0:01:41]} 35. Rxc8+ {[%clk 0:00:27]}  Rxc8 {[%clk 0:01:40]} 36. Nxc8 {[%clk 0:00:27]}  Kxc8 {[%clk 0:01:41]} 37. Rb1 {[%clk 0:00:27]}  Ra1 {[%clk 0:01:41]} 38. Rxa1 {[%clk 0:00:27]}  Bxa1 {[%clk 0:01:42]} 0-1


[Site "https://www.chess.com"]

[Event "Titled Tuesday Blitz December 13 Late 2022"]
[White "Reprintsev, Alexander"]
[Black "Tabatabaei, M. Amin"]
[WhiteFideId "14100541"]
[BlackFideId "12521213"]
[WhiteElo "2230"]
[BlackElo "2551"]
[Result "0-1"]
[Round "01"]
[TimeControl "180+1"]
[Date "2022.12.13"]
[WhiteClock "0:00:04"]
[BlackClock "0:00:39"]

1. e4 {[%clk 0:02:52]}  c6 {[%clk 0:02:59]} 2. b3 {[%clk 0:02:51]}  d5 {[%clk 0:03:00]} 3. Qe2 {[%clk 0:02:50]}  dxe4 {[%clk 0:02:58]} 4. Nc3 {[%clk 0:02:50]}  Nf6 {[%clk 0:02:55]} 5. Nxe4 {[%clk 0:02:49]}  Nxe4 {[%clk 0:02:46]} 6. Qxe4 {[%clk 0:02:40]}  Qd5 {[%clk 0:02:46]} 7. Qe3 {[%clk 0:02:31]}  Bf5 {[%clk 0:02:45]} 8. Bb2 {[%clk 0:02:30]}  Nd7 {[%clk 0:02:40]} 9. O-O-O {[%clk 0:02:19]}  a5 {[%clk 0:02:37]} 10. Nf3 {[%clk 0:02:12]}  a4 {[%clk 0:02:36]} 11. Bc4 {[%clk 0:02:10]}  Qa5 {[%clk 0:02:31]} 12. Nh4 {[%clk 0:01:40]}  axb3 {[%clk 0:02:00]} 13. Bxb3 {[%clk 0:01:15]}  e6 {[%clk 0:01:50]} 14. Nxf5 {[%clk 0:01:09]}  Qxf5 {[%clk 0:01:51]} 15. a4 {[%clk 0:01:04]}  Nc5 {[%clk 0:01:39]} 16. Rhe1 {[%clk 0:00:46]}  Nxa4 {[%clk 0:01:31]} 17. Bxa4 {[%clk 0:00:45]}  Rxa4 {[%clk 0:01:32]} 18. Qb6 {[%clk 0:00:39]}  Qa5 {[%clk 0:01:18]} 19. Qxa5 {[%clk 0:00:34]}  Rxa5 {[%clk 0:01:19]} 20. Re3 {[%clk 0:00:31]}  Be7 {[%clk 0:01:13]} 21. Rg3 {[%clk 0:00:26]}  Bf6 {[%clk 0:01:12]} 22. Bxf6 {[%clk 0:00:26]}  gxf6 {[%clk 0:01:13]} 23. Kb2 {[%clk 0:00:25]}  Ke7 {[%clk 0:01:13]} 24. Ra1 {[%clk 0:00:23]}  Rxa1 {[%clk 0:01:13]} 25. Kxa1 {[%clk 0:00:24]}  f5 {[%clk 0:01:11]} 26. Kb2 {[%clk 0:00:24]}  Rd8 {[%clk 0:01:07]} 27. d3 {[%clk 0:00:23]}  h5 {[%clk 0:01:07]} 28. Rh3 {[%clk 0:00:22]}  Rg8 {[%clk 0:01:06]} 29. g3 {[%clk 0:00:22]}  Rh8 {[%clk 0:01:03]} 30. Rh4 {[%clk 0:00:22]}  Kf6 {[%clk 0:01:03]} 31. Kc3 {[%clk 0:00:21]}  Kg5 {[%clk 0:01:04]} 32. Rb4 {[%clk 0:00:19]}  Rb8 {[%clk 0:00:58]} 33. h3 {[%clk 0:00:20]}  b6 {[%clk 0:00:55]} 34. Kc4 {[%clk 0:00:19]}  h4 {[%clk 0:00:54]} 35. Kc3 {[%clk 0:00:14]}  hxg3 {[%clk 0:00:54]} 36. fxg3 {[%clk 0:00:15]}  Kf6 {[%clk 0:00:52]} 37. Kd2 {[%clk 0:00:14]}  b5 {[%clk 0:00:45]} 38. Ke3 {[%clk 0:00:12]}  Rg8 {[%clk 0:00:45]} 39. Kf3 {[%clk 0:00:11]}  Ra8 {[%clk 0:00:46]} 40. Rb3 {[%clk 0:00:09]}  Ke5 {[%clk 0:00:45]} 41. Rc3 {[%clk 0:00:09]}  Kd5 {[%clk 0:00:45]} 42. h4 {[%clk 0:00:09]}  Rg8 {[%clk 0:00:40]} 43. Ra3 {[%clk 0:00:06]}  Kd4 {[%clk 0:00:37]} 44. Ra7 {[%clk 0:00:07]}  Rc8 {[%clk 0:00:35]} 45. Rxf7 {[%clk 0:00:07]}  Kc3 {[%clk 0:00:36]} 46. Re7 {[%clk 0:00:07]}  Kxc2 {[%clk 0:00:36]} 47. Rxe6 {[%clk 0:00:08]}  b4 {[%clk 0:00:37]} 48. Re1 {[%clk 0:00:03]}  b3 {[%clk 0:00:36]} 49. Kf4 {[%clk 0:00:04]}  b2 {[%clk 0:00:37]} 50. Kxf5 {[%clk 0:00:04]}  Kxd3 {[%clk 0:00:37]} 51. g4 {[%clk 0:00:04]}  c5 {[%clk 0:00:37]} 52. g5 {[%clk 0:00:03]}  c4 {[%clk 0:00:38]} 53. g6 {[%clk 0:00:03]}  c3 {[%clk 0:00:38]} 54. g7 {[%clk 0:00:03]}  c2 {[%clk 0:00:39]} 55. h5 {[%clk 0:00:04]}  c1=Q {[%clk 0:00:39]} 0-1


[Site "https://www.chess.com"]

[Event "Titled Tuesday Blitz December 13 Late 2022"]
[White "Riehle, Marco"]
[Black "Rosenberg, Evan S"]
[WhiteFideId "12904392"]
[BlackFideId "2019299"]
[WhiteElo "2773"]
[BlackElo "2428"]
[Result "1-0"]
[Round "01"]
[TimeControl "180+1"]
[Date "2022.12.14"]
[WhiteClock "0:01:50"]
[BlackClock "0:00:03"]

1. e4 {[%clk 0:02:59]}  e5 {[%clk 0:02:57]} 2. Nf3 {[%clk 0:02:59]}  Nc6 {[%clk 0:02:58]} 3. Bc4 {[%clk 0:02:59]}  Nf6 {[%clk 0:02:58]} 4. d4 {[%clk 0:02:59]}  exd4 {[%clk 0:02:53]} 5. O-O {[%clk 0:03:00]}  Nxe4 {[%clk 0:02:53]} 6. Nc3 {[%clk 0:03:00]}  Nxc3 {[%clk 0:02:39]} 7. bxc3 {[%clk 0:02:58]}  d5 {[%clk 0:02:38]} 8. Bd3 {[%clk 0:02:56]}  Be7 {[%clk 0:02:35]} 9. Re1 {[%clk 0:02:56]}  O-O {[%clk 0:02:35]} 10. cxd4 {[%clk 0:02:56]}  Bg4 {[%clk 0:02:23]} 11. c3 {[%clk 0:02:54]}  Bf6 {[%clk 0:02:16]} 12. h3 {[%clk 0:02:52]}  Bh5 {[%clk 0:02:14]} 13. Bf4 {[%clk 0:02:52]}  a5 {[%clk 0:02:09]} 14. Re3 {[%clk 0:02:49]}  a4 {[%clk 0:01:57]} 15. Qb1 {[%clk 0:02:43]}  Na5 {[%clk 0:01:21]} 16. Bxh7+ {[%clk 0:02:35]}  Kh8 {[%clk 0:01:22]} 17. Bd3 {[%clk 0:02:32]}  c5 {[%clk 0:01:13]} 18. g4 {[%clk 0:02:29]}  cxd4 {[%clk 0:00:59]} 19. cxd4 {[%clk 0:02:29]}  Bg6 {[%clk 0:00:28]} 20. Bxg6 {[%clk 0:02:29]}  fxg6 {[%clk 0:00:29]} 21. Qxg6 {[%clk 0:02:29]}  Bxd4 {[%clk 0:00:20]} 22. Ng5 {[%clk 0:02:20]}  Qxg5 {[%clk 0:00:12]} 23. Bxg5 {[%clk 0:02:20]}  Bxa1 {[%clk 0:00:11]} 24. Re7 {[%clk 0:02:14]}  Ra6 {[%clk 0:00:10]} 25. Qh5+ {[%clk 0:02:05]}  Kg8 {[%clk 0:00:10]} 26. Bd2 {[%clk 0:02:00]}  Nc6 {[%clk 0:00:04]} 27. Qxd5+ {[%clk 0:01:57]}  Kh8 {[%clk 0:00:04]} 28. Rxb7 {[%clk 0:01:53]}  Bd4 {[%clk 0:00:03]} 29. Be3 {[%clk 0:01:49]}  Bxe3 {[%clk 0:00:03]} 30. fxe3 {[%clk 0:01:50]} 1-0


[Site "https://www.chess.com"]

[Event "Titled Tuesday Blitz December 13 Late 2022"]
[White "Romero Ruscalleda, Josep"]
[Black "Budisavljevic, Luka"]
[WhiteFideId "2231859"]
[BlackFideId "960047"]
[WhiteElo "2183"]
[BlackElo "2424"]
[Result "0-1"]
[Round "01"]
[TimeControl "180+1"]
[Date "2022.12.14"]
[WhiteClock "0:00:37"]
[BlackClock "0:01:14"]

1. e4 {[%clk 0:03:00]}  g6 {[%clk 0:02:58]} 2. d4 {[%clk 0:03:00]}  Bg7 {[%clk 0:02:59]} 3. Nc3 {[%clk 0:03:00]}  d6 {[%clk 0:02:59]} 4. Nf3 {[%clk 0:02:59]}  Bg4 {[%clk 0:02:59]} 5. Be2 {[%clk 0:02:59]}  Nc6 {[%clk 0:02:59]} 6. Be3 {[%clk 0:02:58]}  Bxf3 {[%clk 0:02:57]} 7. Bxf3 {[%clk 0:02:58]}  e5 {[%clk 0:02:58]} 8. dxe5 {[%clk 0:02:53]}  dxe5 {[%clk 0:02:47]} 9. O-O {[%clk 0:02:49]}  Nge7 {[%clk 0:02:46]} 10. Nd5 {[%clk 0:02:44]}  O-O {[%clk 0:02:44]} 11. c3 {[%clk 0:02:41]}  Nxd5 {[%clk 0:02:38]} 12. exd5 {[%clk 0:02:40]}  Ne7 {[%clk 0:02:38]} 13. Qb3 {[%clk 0:02:31]}  Kh8 {[%clk 0:02:23]} 14. Rfd1 {[%clk 0:02:16]}  Qd6 {[%clk 0:02:22]} 15. c4 {[%clk 0:02:07]}  b6 {[%clk 0:02:21]} 16. Rac1 {[%clk 0:02:06]}  Rab8 {[%clk 0:02:20]} 17. Qa4 {[%clk 0:01:54]}  f5 {[%clk 0:02:15]} 18. b4 {[%clk 0:01:54]}  e4 {[%clk 0:02:13]} 19. Be2 {[%clk 0:01:36]}  f4 {[%clk 0:02:11]} 20. c5 {[%clk 0:01:25]}  Qd8 {[%clk 0:01:49]} 21. Bd4 {[%clk 0:01:19]}  f3 {[%clk 0:01:49]} 22. Bc4 {[%clk 0:01:12]}  Bxd4 {[%clk 0:01:41]} 23. Rxd4 {[%clk 0:01:11]}  Nf5 {[%clk 0:01:42]} 24. Rxe4 {[%clk 0:01:07]}  Qg5 {[%clk 0:01:42]} 25. g3 {[%clk 0:01:02]}  Qxc1+ {[%clk 0:01:42]} 26. Bf1 {[%clk 0:01:00]}  bxc5 {[%clk 0:01:32]} 27. Rc4 {[%clk 0:00:51]}  Qe1 {[%clk 0:01:26]} 28. b5 {[%clk 0:00:37]}  Nd4 {[%clk 0:01:14]} 0-1


[Site "https://www.chess.com"]

[Event "Titled Tuesday Blitz December 13 Late 2022"]
[White "Sanchez, Robert"]
[Black "Timmermans, Mark"]
[WhiteFideId "2034360"]
[BlackFideId "1026399"]
[WhiteElo "2351"]
[BlackElo "2460"]
[Result "0-1"]
[Round "01"]
[TimeControl "180+1"]
[Date "2022.12.14"]
[WhiteClock "0:01:42"]
[BlackClock "0:02:14"]

1. e4 {[%clk 0:02:59]}  e5 {[%clk 0:02:59]} 2. Nf3 {[%clk 0:02:59]}  Nc6 {[%clk 0:02:59]} 3. Bb5 {[%clk 0:02:59]}  f5 {[%clk 0:03:00]} 4. d4 {[%clk 0:02:52]}  fxe4 {[%clk 0:02:59]} 5. Nxe5 {[%clk 0:02:39]}  Nxe5 {[%clk 0:02:59]} 6. dxe5 {[%clk 0:02:39]}  c6 {[%clk 0:03:00]} 7. Bc4 {[%clk 0:02:39]}  Qa5+ {[%clk 0:03:00]} 8. Nc3 {[%clk 0:02:38]}  Qxe5 {[%clk 0:03:01]} 9. O-O {[%clk 0:02:37]}  d5 {[%clk 0:03:00]} 10. Re1 {[%clk 0:02:32]}  Nf6 {[%clk 0:02:56]} 11. Bb3 {[%clk 0:02:28]}  Bd6 {[%clk 0:02:56]} 12. g3 {[%clk 0:02:28]}  Bg4 {[%clk 0:02:54]} 13. Qd2 {[%clk 0:02:26]}  Qh5 {[%clk 0:02:42]} 14. Qg5 {[%clk 0:02:24]}  Qh3 {[%clk 0:02:36]} 15. Bc4 {[%clk 0:01:45]}  dxc4 {[%clk 0:02:23]} 16. Nxe4 {[%clk 0:01:42]}  O-O {[%clk 0:02:14]} 0-1


[Site "https://www.chess.com"]

[Event "Titled Tuesday Blitz December 13 Late 2022"]
[White "Sargsyan, Anna M."]
[Black "Prieto Aranguren, Alain"]
[WhiteFideId "13308130"]
[BlackFideId "2268906"]
[WhiteElo "2284"]
[BlackElo "2209"]
[Result "1-0"]
[Round "01"]
[TimeControl "180+1"]
[Date "2022.12.14"]
[WhiteClock "0:00:56"]
[BlackClock "0:00:03"]

1. d4 {[%clk 0:02:53]}  c6 {[%clk 0:03:00]} 2. c4 {[%clk 0:02:49]}  d5 {[%clk 0:03:00]} 3. Nf3 {[%clk 0:02:49]}  Nf6 {[%clk 0:02:57]} 4. Nc3 {[%clk 0:02:50]}  e6 {[%clk 0:02:55]} 5. e3 {[%clk 0:02:48]}  Be7 {[%clk 0:02:53]} 6. Bd3 {[%clk 0:02:45]}  O-O {[%clk 0:02:52]} 7. b3 {[%clk 0:02:43]}  a5 {[%clk 0:02:48]} 8. Bb2 {[%clk 0:02:42]}  a4 {[%clk 0:02:46]} 9. Nxa4 {[%clk 0:02:37]}  dxc4 {[%clk 0:02:46]} 10. bxc4 {[%clk 0:02:37]}  Qa5+ {[%clk 0:02:35]} 11. Nc3 {[%clk 0:02:36]}  Qb4 {[%clk 0:02:35]} 12. Qb3 {[%clk 0:02:34]}  Na6 {[%clk 0:02:31]} 13. O-O {[%clk 0:02:33]}  c5 {[%clk 0:02:23]} 14. Nb5 {[%clk 0:02:28]}  Bd7 {[%clk 0:02:13]} 15. Ne5 {[%clk 0:02:19]}  Bxb5 {[%clk 0:01:57]} 16. cxb5 {[%clk 0:02:20]}  Qxb3 {[%clk 0:01:57]} 17. axb3 {[%clk 0:02:20]}  Nb4 {[%clk 0:01:57]} 18. Bc4 {[%clk 0:02:18]}  cxd4 {[%clk 0:01:56]} 19. exd4 {[%clk 0:02:15]}  Rfd8 {[%clk 0:01:50]} 20. Rxa8 {[%clk 0:02:12]}  Rxa8 {[%clk 0:01:49]} 21. f3 {[%clk 0:02:13]}  Ra2 {[%clk 0:01:43]} 22. Rb1 {[%clk 0:02:12]}  Nfd5 {[%clk 0:01:40]} 23. Ra1 {[%clk 0:01:48]}  Rxa1+ {[%clk 0:01:28]} 24. Bxa1 {[%clk 0:01:49]}  Bg5 {[%clk 0:01:27]} 25. Kf2 {[%clk 0:01:47]}  Be3+ {[%clk 0:01:21]} 26. Ke2 {[%clk 0:01:46]}  Nc2 {[%clk 0:01:21]} 27. Bxd5 {[%clk 0:01:42]}  exd5 {[%clk 0:01:19]} 28. Kd3 {[%clk 0:01:41]}  Nxa1 {[%clk 0:01:19]} 29. Kxe3 {[%clk 0:01:37]}  Nxb3 {[%clk 0:01:18]} 30. Nd7 {[%clk 0:01:36]}  Na5 {[%clk 0:01:03]} 31. Nb6 {[%clk 0:01:35]}  Nc4+ {[%clk 0:01:03]} 32. Nxc4 {[%clk 0:01:35]}  dxc4 {[%clk 0:01:03]} 33. d5 {[%clk 0:01:36]}  Kf8 {[%clk 0:01:03]} 34. Kd4 {[%clk 0:01:36]}  Ke7 {[%clk 0:01:03]} 35. Kxc4 {[%clk 0:01:36]}  Kd6 {[%clk 0:01:03]} 36. b6 {[%clk 0:01:36]}  g5 {[%clk 0:00:56]} 37. g4 {[%clk 0:01:35]}  Ke5 {[%clk 0:00:50]} 38. Kc5 {[%clk 0:01:34]}  f6 {[%clk 0:00:46]} 39. Kc4 {[%clk 0:01:28]}  f5 {[%clk 0:00:28]} 40. Kc5 {[%clk 0:01:16]}  f4 {[%clk 0:00:12]} 41. Kc4 {[%clk 0:01:15]}  h6 {[%clk 0:00:05]} 42. h3 {[%clk 0:01:14]}  Kd6 {[%clk 0:00:03]} 43. Kd4 {[%clk 0:01:14]}  Kd7 {[%clk 0:00:02]} 44. Ke5 {[%clk 0:01:14]}  Ke7 {[%clk 0:00:03]} 45. d6+ {[%clk 0:01:09]}  Kd7 {[%clk 0:00:03]} 46. Kd5 {[%clk 0:01:10]}  Kd8 {[%clk 0:00:03]} 47. Ke6 {[%clk 0:01:10]}  Ke8 {[%clk 0:00:03]} 48. Ke5 {[%clk 0:01:08]}  Kd7 {[%clk 0:00:03]} 49. Kd5 {[%clk 0:01:08]}  Kd8 {[%clk 0:00:03]} 50. Ke6 {[%clk 0:01:07]}  Ke8 {[%clk 0:00:03]} 51. d7+ {[%clk 0:00:55]}  Kd8 {[%clk 0:00:03]} 52. Kd6 {[%clk 0:00:56]}  h5 {[%clk 0:00:03]} 53. gxh5 {[%clk 0:00:57]}  g4 {[%clk 0:00:03]} 54. h6 {[%clk 0:00:57]}  gxf3 {[%clk 0:00:03]} 55. h7 {[%clk 0:00:55]}  f2 {[%clk 0:00:03]} 56. h8=Q# {[%clk 0:00:56]} 1-0


[Site "https://www.chess.com"]

[Event "Titled Tuesday Blitz December 13 Late 2022"]
[White "Seletsky, Grigory"]
[Black "Javakhadze, Zurab"]
[WhiteFideId "14112191"]
[BlackFideId "13603647"]
[WhiteElo "2492"]
[BlackElo "2381"]
[Result "0-1"]
[Round "01"]
[TimeControl "180+1"]
[Date "2022.12.14"]
[WhiteClock "0:00:03"]
[BlackClock "0:00:03"]

1. e4 {[%clk 0:02:58]}  e5 {[%clk 0:02:58]} 2. Nf3 {[%clk 0:02:57]}  Nc6 {[%clk 0:02:58]} 3. Bc4 {[%clk 0:02:57]}  Nf6 {[%clk 0:02:58]} 4. d3 {[%clk 0:02:56]}  Bc5 {[%clk 0:02:55]} 5. Nc3 {[%clk 0:02:54]}  h6 {[%clk 0:02:54]} 6. Be3 {[%clk 0:02:53]}  d6 {[%clk 0:02:46]} 7. Bxc5 {[%clk 0:02:52]}  dxc5 {[%clk 0:02:45]} 8. h3 {[%clk 0:02:50]}  O-O {[%clk 0:02:45]} 9. a3 {[%clk 0:02:45]}  Re8 {[%clk 0:02:37]} 10. O-O {[%clk 0:02:44]}  Nd4 {[%clk 0:02:36]} 11. Nxd4 {[%clk 0:02:43]}  cxd4 {[%clk 0:02:33]} 12. Nd5 {[%clk 0:02:42]}  Be6 {[%clk 0:02:25]} 13. Nxf6+ {[%clk 0:02:40]}  Qxf6 {[%clk 0:02:26]} 14. Bxe6 {[%clk 0:02:36]}  Rxe6 {[%clk 0:02:27]} 15. Qd2 {[%clk 0:02:36]}  Qg5 {[%clk 0:02:25]} 16. f4 {[%clk 0:02:31]}  exf4 {[%clk 0:02:24]} 17. Qxf4 {[%clk 0:02:31]}  Qxf4 {[%clk 0:02:22]} 18. Rxf4 {[%clk 0:02:31]}  f6 {[%clk 0:02:23]} 19. Kf1 {[%clk 0:02:14]}  Rb6 {[%clk 0:02:20]} 20. b3 {[%clk 0:02:13]}  Re8 {[%clk 0:02:20]} 21. Ke2 {[%clk 0:02:12]}  Re5 {[%clk 0:02:18]} 22. Kd2 {[%clk 0:02:08]}  Rg5 {[%clk 0:02:16]} 23. g4 {[%clk 0:02:03]}  h5 {[%clk 0:02:14]} 24. Rf5 {[%clk 0:02:03]}  hxg4 {[%clk 0:02:11]} 25. Rxg5 {[%clk 0:02:00]}  fxg5 {[%clk 0:02:11]} 26. hxg4 {[%clk 0:02:00]}  Rh6 {[%clk 0:02:12]} 27. Rg1 {[%clk 0:01:51]}  Rh2+ {[%clk 0:02:11]} 28. Kc1 {[%clk 0:01:52]}  Kf7 {[%clk 0:02:08]} 29. b4 {[%clk 0:01:47]}  Ke6 {[%clk 0:02:08]} 30. Kb2 {[%clk 0:01:45]}  g6 {[%clk 0:02:02]} 31. Kb3 {[%clk 0:01:43]}  Kd6 {[%clk 0:01:45]} 32. a4 {[%clk 0:01:40]}  Rf2 {[%clk 0:01:41]} 33. a5 {[%clk 0:01:36]}  a6 {[%clk 0:01:39]} 34. c3 {[%clk 0:01:32]}  dxc3 {[%clk 0:01:34]} 35. Kxc3 {[%clk 0:01:32]}  Ke5 {[%clk 0:01:30]} 36. Rh1 {[%clk 0:01:30]}  Rf7 {[%clk 0:01:28]} 37. Re1 {[%clk 0:01:23]}  Rf4 {[%clk 0:01:18]} 38. Rg1 {[%clk 0:01:15]}  Rf3 {[%clk 0:01:07]} 39. Rh1 {[%clk 0:01:08]}  Rf7 {[%clk 0:01:04]} 40. Re1 {[%clk 0:01:07]}  Rf2 {[%clk 0:01:00]} 41. Rh1 {[%clk 0:01:05]}  Kf4 {[%clk 0:00:54]} 42. Rh7 {[%clk 0:01:03]}  Kxg4 {[%clk 0:00:54]} 43. Rxc7 {[%clk 0:01:01]}  Kh3 {[%clk 0:00:51]} 44. Rg7 {[%clk 0:00:56]}  g4 {[%clk 0:00:46]} 45. Rxg6 {[%clk 0:00:55]}  g3 {[%clk 0:00:47]} 46. e5 {[%clk 0:00:53]}  g2 {[%clk 0:00:45]} 47. e6 {[%clk 0:00:48]}  Re2 {[%clk 0:00:41]} 48. Rh6+ {[%clk 0:00:33]}  Kg3 {[%clk 0:00:40]} 49. d4 {[%clk 0:00:33]}  Kf2 {[%clk 0:00:18]} 50. Rf6+ {[%clk 0:00:30]}  Ke1 {[%clk 0:00:15]} 51. Rg6 {[%clk 0:00:30]}  Kf2 {[%clk 0:00:13]} 52. Rf6+ {[%clk 0:00:22]}  Ke1 {[%clk 0:00:11]} 53. Rg6 {[%clk 0:00:19]}  Kf2 {[%clk 0:00:04]} 54. d5 {[%clk 0:00:11]}  g1=Q {[%clk 0:00:03]} 55. Rxg1 {[%clk 0:00:11]}  Kxg1 {[%clk 0:00:04]} 56. Kd4 {[%clk 0:00:11]}  Kf2 {[%clk 0:00:04]} 57. Kc5 {[%clk 0:00:09]}  Kf3 {[%clk 0:00:02]} 58. Kd6 {[%clk 0:00:04]}  Ke4 {[%clk 0:00:02]} 59. e7 {[%clk 0:00:04]}  Kd4 {[%clk 0:00:02]} 60. Kd7 {[%clk 0:00:03]}  Kxd5 {[%clk 0:00:03]} 0-1


[Site "https://www.chess.com"]

[Event "Titled Tuesday Blitz December 13 Late 2022"]
[White "Sivakumar, Shaaketh"]
[Black "Thiel, Thomas"]
[WhiteFideId "30940176"]
[BlackFideId "4615964"]
[WhiteElo "2174"]
[BlackElo "2193"]
[Result "1-0"]
[Round "01"]
[TimeControl "180+1"]
[Date "2022.12.14"]
[WhiteClock "0:02:16"]
[BlackClock "0:01:46"]

1. Nf3 {[%clk 0:03:00]}  Nf6 {[%clk 0:02:57]} 2. c4 {[%clk 0:03:00]}  g6 {[%clk 0:02:56]} 3. b4 {[%clk 0:03:00]}  Bg7 {[%clk 0:02:55]} 4. Bb2 {[%clk 0:03:01]}  O-O {[%clk 0:02:53]} 5. g3 {[%clk 0:03:01]}  c6 {[%clk 0:02:51]} 6. Bg2 {[%clk 0:03:02]}  d5 {[%clk 0:02:49]} 7. cxd5 {[%clk 0:03:01]}  cxd5 {[%clk 0:02:50]} 8. d3 {[%clk 0:03:01]}  a6 {[%clk 0:02:48]} 9. Nbd2 {[%clk 0:02:58]}  Nc6 {[%clk 0:02:46]} 10. Qb3 {[%clk 0:02:57]}  Qb6 {[%clk 0:02:38]} 11. a3 {[%clk 0:02:54]}  a5 {[%clk 0:02:33]} 12. b5 {[%clk 0:02:51]}  Na7 {[%clk 0:02:27]} 13. a4 {[%clk 0:02:50]}  Bd7 {[%clk 0:02:21]} 14. O-O {[%clk 0:02:47]}  Nc8 {[%clk 0:02:17]} 15. Ne5 {[%clk 0:02:37]}  e6 {[%clk 0:02:14]} 16. g4 {[%clk 0:02:31]}  Be8 {[%clk 0:02:11]} 17. Ndf3 {[%clk 0:02:26]}  h6 {[%clk 0:02:01]} 18. Ba3 {[%clk 0:02:20]}  Nd6 {[%clk 0:01:56]} 19. Rac1 {[%clk 0:02:19]}  Nd7 {[%clk 0:01:50]} 20. Nxd7 {[%clk 0:02:19]}  Bxd7 {[%clk 0:01:50]} 21. Bc5 {[%clk 0:02:20]}  Qc7 {[%clk 0:01:46]} 22. Qa3 {[%clk 0:02:16]} 1-0


[Site "https://www.chess.com"]